[Event "Serbian League Women 2024"]
[Site "Bajina Basta"]
[Date "2024.09.28"]
[Round "2.23"]
[White "Mihailova, Alina"]
[Black "Petronic, Sanja"]
[Result "1/2-1/2"]
[ECO "A64"]
[WhiteElo "1969"]
[BlackElo "2081"]
[Annotator "NA"]
[PlyCount "132"]
[EventDate "2024.09.26"]
[EventType "team-tourn"]
[EventCountry "SRB"]
[SourceTitle "playchess.com"]
[Source "ChessBase"]
[SourceQuality "1"]
[TimeControl "40/5400+30:1800+30"]

1. d4 {[%emt 0:00:02]} Nf6 {[%emt 0:00:22]} 2. c4 {[%emt 0:00:08]} c5 {[%emt 0:01:54]} 3. d5 {[%emt 0:00:25]} g6 {[%emt 0:00:40]} 4. Nf3 {[%emt 0:01:08]} Bg7 {[%emt 0:00:32]} 5. Nc3 {[%emt 0:00:15]} O-O {[%emt 0:00:47]} 6. g3 {[%emt 0:00:46]} e6 {[%emt 0:00:15]} 7. Bg2 {[%emt 0:02:10]} exd5 {[%emt 0:00:11]} 8. cxd5 {[%emt 0:00:03]} d6 {[%emt 0:00:06]} 9. O-O {[%emt 0:00:13]} a6 {[%emt 0:02:02]} 10. a4 {[%emt 0:00:16]} Nbd7 {[%emt 0:01:57]} 11. Nd2 {[%emt 0:04:57]} Re8 {[%emt 0:01:34]} 12. Nc4 {[%emt 0:18:42]} Ne5 {[%emt 0:01:26]} 13. Nxe5 {[%emt 0:00:27]} Rxe5 {[%emt 0:00:11]} 14. Bf4 {[%emt 0:00:21]} Re8 {[%emt 0:00:18]} 15. e4 {[%emt 0:03:06]} Rb8 {[%emt 0:04:50]} 16. Re1 {[%emt 0:10:38]} b5 {[%emt 0:06:37]} 17. axb5 {[%emt 0:00:18]} axb5 {[%emt 0:00:06]} 18. e5 {[%emt 0:05:08]} Nh5 {[%emt 0:18:11]} 19. exd6 {[%emt 0:12:21]} Rxe1+ {[%emt 0:10:31]} 20. Qxe1 {[%emt 0:00:15]} Nxf4 {[%emt 0:00:04]} 21. gxf4 {[%emt 0:00:45]} Qxd6 {[%emt 0:04:55]} 22. Nxb5 {[%emt 0:18:06]} Qd7 {[%emt 0:02:15]} 23. Na7 {[%emt 0:01:08]} Bb7 {[%emt 0:08:47]} 24. Nc6 {[%emt 0:06:29]} Re8 {[%emt 0:00:47]} 25. Qc1 {[%emt 0:00:24]} Qd6 {[%emt 0:06:05]} 26. h3 {[%emt 0:02:32]} Bh6 {[%emt 0:04:01]} 27. Ra4 {[%emt 0:01:27]} Bc8 {[%emt 0:03:14]} 28. Na5 {[%emt 0:03:40]} Bd7 {[%emt 0:06:30]} 29. Nc6 {[%emt 0:02:18]} Bf5 {[%emt 0:00:44]} 30. Qd2 {[%emt 0:02:50]} Bg7 {[%emt 0:01:54]} 31. Na5 {[%emt 0:02:00]} Qd7 {[%emt 0:03:14]} 32. Ra3 {[%emt 0:01:22]} h5 {[%emt 0:03:19]} 33. d6 {[%emt 0:00:46]} Be4 {[%emt 0:02:25]} 34. Re3 {[%emt 0:01:10]} Bxg2 {[%emt 0:01:08]} 35. Rxe8+ {[%emt 0:00:16]} Qxe8 {[%emt 0:00:05]} 36. Kxg2 {[%emt 0:00:57]} Bd4 {[%emt 0:00:45]} 37. b3 {[%emt 0:00:30]} Qe4+ {[%emt 0:03:00]} 38. f3 {[%emt 0:00:18]} Qe6 {[%emt 0:02:23]} 39. Nc4 {[%emt 0:00:09]} h4 {[%emt 0:00:15]} 40. Kh2 {[%emt 0:00:46]} Qf5 {[%emt 0:00:10]} 41. Kg2 {[%emt 0:20:10]} Qb1 {[%emt 0:04:42]} 42. Ne3 {[%emt 0:00:46]} Kf8 {[%emt 0:01:39]} 43. Qe2 {[%emt 0:09:21]} Bxe3 {[%emt 0:07:04]} 44. Qxe3 {[%emt 0:00:05]} Qc2+ {[%emt 0:00:03]} 45. Qf2 {[%emt 0:00:47]} Qxf2+ {[%emt 0:00:05]} 46. Kxf2 {[%emt 0:00:02]} Ke8 {[%emt 0:00:04]} 47. Ke3 {[%emt 0:00:52]} Kd7 {[%emt 0:00:04]} 48. Ke4 {[%emt 0:01:40]} Kxd6 {[%emt 0:00:05]} 49. f5 {[%emt 0:00:45]} g5 {[%emt 0:00:44]} 50. f6 {[%emt 0:00:49]} Ke6 {[%emt 0:01:44]} 51. Kd3 {[%emt 0:00:16]} Kxf6 {[%emt 0:04:12]} 52. Kc4 {[%emt 0:00:06]} Ke6 {[%emt 0:00:07]} 53. Kxc5 {[%emt 0:00:06]} f5 {[%emt 0:00:06]} 54. Kd4 {[%emt 0:01:29]} g4 {[%emt 0:00:17]} 55. fxg4 {[%emt 0:00:26]} fxg4 {[%emt 0:00:06]} 56. Ke3 {[%emt 0:00:04]} g3 {[%emt 0:00:05]} 57. b4 {[%emt 0:00:25]} Kd5 {[%emt 0:00:13]} 58. b5 {[%emt 0:00:07]} Kc5 {[%emt 0:00:01]} 59. b6 {[%emt 0:00:13]} Kxb6 {[%emt 0:00:02]} 60. Ke2 {[%emt 0:00:39]} Kc5 {[%emt 0:00:05]} 61. Ke3 {[%emt 0:00:48]} Kd5 {[%emt 0:00:07]} 62. Kf3 {[%emt 0:00:35]} Kd4 {[%emt 0:00:04]} 63. Kg2 {[%emt 0:00:17]} Ke3 {[%emt 0:00:04]} 64. Kg1 {[%emt 0:00:13]} Kf3 {[%emt 0:00:03]} 65. Kf1 {[%emt 0:00:04]} g2+ {[%emt 0:00:03]} 66. Kg1 {[%emt 0:00:17]} Kg3 {[%emt 0:00:01]} 1/2-1/2

[Event "Serbian League Women 2024"]
[Site "Bajina Basta"]
[Date "2024.09.28"]
[Round "2.24"]
[White "Urosevic, Marija"]
[Black "Stankovic, Andrea"]
[Result "1-0"]
[ECO "A90"]
[WhiteElo "2060"]
[BlackElo "1856"]
[Annotator "NA"]
[PlyCount "93"]
[EventDate "2024.09.26"]
[EventType "team-tourn"]
[EventCountry "SRB"]
[SourceTitle "playchess.com"]
[Source "ChessBase"]
[SourceQuality "1"]
[TimeControl "40/5400+30:1800+30"]

1. d4 {[%emt 0:00:03]} e6 {[%emt 0:00:06]} 2. c4 {[%emt 0:00:20]} f5 {[%emt 0:00:06]} 3. g3 {[%emt 0:03:06]} Nf6 {[%emt 0:00:06]} 4. Bg2 {[%emt 0:00:03]} d5 {[%emt 0:00:06]} 5. Nf3 {[%emt 0:02:34]} c6 {[%emt 0:00:07]} 6. b3 {[%emt 0:00:17]} b6 {[%emt 0:00:10]} 7. O-O {[%emt 0:00:07]} Bd6 {[%emt 0:00:15]} 8. Bb2 {[%emt 0:00:53]} Bb7 {[%emt 1:33:34]} 9. Nbd2 {[%emt 0:00:05]} O-O {[%emt 0:00:00]} 10. Ne5 {[%emt 0:02:43]} Qe7 {[%emt 0:00:00]} 11. Nd3 {[%emt 0:04:01]} Nbd7 {[%emt 0:00:00]} 12. Nf3 {[%emt 0:06:06]} c5 {[%emt 0:00:00]} 13. dxc5 {[%emt 0:07:00]} bxc5 {[%emt 0:00:00]} 14. cxd5 {[%emt 0:02:23]} exd5 {[%emt 0:00:00]} 15. e3 {[%emt 0:07:38]} Rac8 {[%emt 0:00:00]} 16. Nf4 {[%emt 0:05:29]} Nb6 {[%emt 0:00:00]} 17. a4 {[%emt 0:21:25]} Nbd7 {[%emt 0:00:00]} 18. Qd3 {[%emt 0:06:07]} c4 {[%emt 0:00:00]} 19. bxc4 {[%emt 0:01:01]} dxc4 {[%emt 0:00:00]} 20. Qxf5 {[%emt 0:07:13]} c3 {[%emt 0:00:00]} 21. Bc1 {[%emt 0:00:13]} Nc5 {[%emt 0:00:00]} 22. Qc2 {[%emt 0:04:38]} Nfe4 {[%emt 0:00:00]} 23. Nd4 {[%emt 0:03:17]} Na6 {[%emt 0:00:00]} 24. Nb5 {[%emt 0:05:34]} Bc5 {[%emt 0:00:00]} 25. Qb3+ {[%emt 0:01:52]} Kh8 {[%emt 0:00:00]} 26. Nxc3 {[%emt 0:00:34]} Rb8 {[%emt 0:01:44]} 27. Nxe4 {[%emt 0:00:57]} Bxe4 {[%emt 0:00:15]} 28. Qe6 {[%emt 0:01:53]} Bxg2 {[%emt 0:01:29]} 29. Qxe7 {[%emt 0:00:05]} Bxe7 {[%emt 0:00:07]} 30. Kxg2 {[%emt 0:00:14]} Rb3 {[%emt 0:00:23]} 31. Nd5 {[%emt 0:00:50]} Bc5 {[%emt 0:00:51]} 32. e4 {[%emt 0:01:23]} Re8 {[%emt 0:01:11]} 33. Re1 {[%emt 0:01:05]} Bd4 {[%emt 0:01:01]} 34. Ra3 {[%emt 0:00:29]} Rb1 {[%emt 0:00:17]} 35. Rd3 {[%emt 0:00:48]} Be5 {[%emt 0:01:05]} 36. Rdd1 {[%emt 0:02:22]} Ra1 {[%emt 0:00:35]} 37. Be3 {[%emt 0:01:09]} Rxa4 {[%emt 0:00:28]} 38. Bxa7 {[%emt 0:00:17]} Nb8 {[%emt 0:02:23]} 39. Bxb8 {[%emt 0:00:57]} Bxb8 {[%emt 0:00:08]} 40. Rb1 {[%emt 0:01:10]} h6 {[%emt 0:01:31]} 41. Re2 {[%emt 0:31:36]} Bd6 {[%emt 0:31:20]} 42. f3 {[%emt 0:00:16]} Rd4 {[%emt 0:01:28]} 43. Rbb2 {[%emt 0:00:43]} Bb8 {[%emt 0:00:00]} 44. Ne3 {[%emt 0:00:00]} Rd7 {[%emt 0:00:00]} 45. f4 {[%emt 0:00:00]} Ba7 {[%emt 0:00:00]} 46. e5 {[%emt 0:00:00]} g6 {[%emt 0:00:00]} 47. Ng4 {[%emt 0:00:00]} 1-0